bitfinex-derivatives/quotes_BNBF0:USTF0_20250413
["timestamp","ask_amount","ask_price","bid_price","bid_amount"]
[1744508531103,0.30784746,597.66,596.92,0.96422058]
[1744508531501,0.30784746,597.66,596.93,0.96422058]
[1744508531799,0.30784746,597.66,596.94,0.96422058]
[1744508532304,0.30784746,597.66,596.95,0.96422058]
[1744508532500,0.30784746,597.66,596.95,1.74022058]
[1744508532700,0.30784746,597.66,596.96,0.96422058]
[1744508533102,0.30784746,597.66,596.97,0.96422058]
[1744508533505,0.29144996,597.65,596.97,0.96422058]
[1744508533705,0.29144996,597.65,596.98,0.96422058]
[1744508533904,0.30784746,597.64,596.98,0.96422058]
[1744508534107,0.30784746,597.64,596.95,0.776]
[1744508534402,0.30784746,597.64,596.96,0.96553239]
[1744508534807,0.30784746,597.64,596.95,0.776]
[1744508536407,0.30784746,597.69,596.95,0.776]
[1744508536611,0.29146827,597.63,596.95,0.776]
[1744508536806,0.30784746,597.62,596.95,0.776]
[1744508537807,0.29146827,597.63,596.95,0.776]
[1744508538010,0.30783643,597.62,596.95,0.776]
[1744508538613,0.30783643,597.62,596.96,0.58]
[1744508540108,0.30783643,597.62,596.97,0.964]
[1744508540413,0.30783643,597.62,596.98,0.658]
[1744508541013,0.29146827,597.63,596.98,0.658]
[1744508541209,0.3078572,597.62,596.98,0.658]
[1744508542416,0.3078572,597.69,596.98,0.658]
[1744508542616,0.59934622,597.61,596.98,0.658]
[1744508542817,0.3078572,597.6,596.98,0.658]
[1744508543022,0.3078572,597.69,596.98,0.658]
[1744508543223,0.3078572,597.68,596.98,0.658]
[1744508543417,0.3078572,597.69,596.98,0.658]
[1744508543619,0.29148048,597.67,596.98,0.658]
[1744508543816,0.3078572,597.66,596.98,0.658]
[1744508545623,0.29148414,597.65,596.98,0.658]
[1744508546021,0.3078572,597.64,596.98,0.658]
[1744508548419,0.3078572,597.69,596.99,0.75]
[1744508548623,0.3078572,597.68,596.99,0.75]
[1744508548822,0.3078572,597.67,596.99,0.75]
[1744508549028,0.3078572,597.69,597.0,0.786]
[1744508549221,0.3078572,597.68,597.0,0.786]
[1744508549426,0.3078572,597.67,597.0,0.786]
[1744508549725,0.33461602,597.7,597.0,0.786]
[1744508549726,0.3078572,597.66,597.0,0.786]
[1744508549926,0.3078572,597.67,597.0,0.786]
[1744508550127,0.3078572,597.66,597.0,0.786]
[1744508550324,0.3078572,597.65,597.0,0.786]
[1744508550529,0.3078572,597.67,597.0,0.786]
[1744508550729,0.3078572,597.66,597.0,0.786]
[1744508550929,0.3078572,597.67,597.0,0.786]
[1744508551229,0.3078572,597.66,597.0,0.786]
[1744508551426,0.3078572,597.69,597.0,0.786]
[1744508551631,0.29145362,597.66,597.0,0.786]
[1744508551825,0.3078572,597.65,597.0,0.786]
[1744508552531,0.29145362,597.66,597.0,0.786]
[1744508552724,0.30783578,597.65,597.0,0.786]
[1744508553824,0.30783578,597.65,597.01,0.388]
[1744508554533,0.59927232,597.64,597.01,0.388]
[1744508554830,0.30783578,597.63,597.01,0.388]
[1744508555125,0.30783578,597.63,597.02,0.96547095]
[1744508555827,0.30783578,597.63,597.03,0.96547095]
[1744508556430,0.30783578,597.63,597.04,0.96547095]
[1744508557231,0.30783578,597.63,597.01,0.388]
[1744508557429,0.33461602,597.7,597.01,0.388]
[1744508557628,0.30775551,597.69,597.02,0.96471066]
[1744508558032,0.30775551,597.69,597.03,0.96471066]
[1744508558533,0.29141824,597.68,597.03,0.96471066]
[1744508558730,0.30775551,597.67,597.03,0.96471066]
[1744508558936,0.30775551,597.67,597.04,0.96471066]
[1744508559334,0.30775551,597.67,597.04,1.74771066]
[1744508559535,0.30775551,597.67,597.05,0.96471066]
[1744508560435,0.30775551,597.69,597.06,0.96471066]
[1744508560637,0.29141824,597.66,597.06,0.96471066]
[1744508560832,0.30775551,597.65,597.06,0.96471066]
[1744508561131,0.30775551,597.65,597.07,0.96471066]
[1744508561436,0.30775551,597.65,597.04,0.783]
[1744508561837,0.30775551,597.65,597.05,0.96408214]
[1744508562231,0.29141824,597.66,597.05,0.96408214]
[1744508562430,0.30775871,597.65,597.06,0.96408214]
[1744508563137,0.30775871,597.65,597.04,0.783]
[1744508563638,0.2914219,597.64,597.04,0.783]
[1744508564039,0.30775551,597.63,597.05,0.96385895]
[1744508564438,0.30775551,597.63,597.06,0.96385895]
[1744508565138,0.30775551,597.63,597.04,0.783]
[1744508565340,0.30775551,597.63,597.06,0.538]
[1744508566338,0.30775551,597.69,597.06,0.538]
[1744508566539,0.2914463,597.62,597.06,0.538]
[1744508566735,0.30775551,597.61,597.06,0.538]
[1744508567239,0.30781342,597.6,597.06,0.538]
[1744508567439,0.30781342,597.69,597.06,0.538]
[1744508567635,0.2914463,597.59,597.06,0.538]
[1744508567838,0.30781342,597.58,597.06,0.538]
[1744508568338,0.30781342,597.69,597.06,0.538]
[1744508568538,0.30781342,597.69,597.06,1.131]
[1744508569440,0.2914463,597.68,597.06,1.131]
[1744508569643,0.30781342,597.67,597.06,1.131]
[1744508572440,0.30781342,597.69,597.06,1.131]
[1744508572639,0.30781342,597.68,597.06,1.131]
[1744508572839,0.30781342,597.67,597.06,1.131]
[1744508573041,0.30781342,597.69,597.06,1.131]
[1744508573236,0.30781342,597.68,597.06,1.131]
[1744508573439,0.30781342,597.69,597.06,1.131]
[1744508573642,0.59925972,597.68,597.06,1.131]
[1744508573839,0.30781342,597.67,597.06,1.131]
[1744508575244,0.33461602,597.7,597.06,1.131]
[1744508575545,0.30783124,597.69,597.06,1.701]
[1744508575844,0.30783124,597.68,597.06,1.701]
[1744508576039,0.30783124,597.67,597.06,1.701]
[1744508576243,0.30783124,597.69,597.06,1.701]
[1744508576443,0.30783124,597.68,597.06,1.701]
[1744508576640,0.2914463,597.66,597.06,1.701]
[1744508576945,0.30782543,597.65,597.06,1.701]
[1744508578440,0.30782543,597.69,597.06,1.701]
[1744508578639,0.30782543,597.69,597.06,2.331]
[1744508579441,0.29142434,597.68,597.06,2.331]
[1744508579646,0.30782543,597.67,597.06,2.331]
[1744508580547,0.30782543,597.67,597.06,3.015]
[1744508581147,0.29142434,597.68,597.06,3.015]
[1744508581350,0.30779773,597.67,597.06,3.015]
[1744508581646,0.30779773,597.66,597.06,3.015]
[1744508581842,0.30779773,597.69,597.06,3.015]
[1744508582046,0.30779773,597.68,597.06,3.015]
[1744508582247,0.30779773,597.69,597.06,3.015]
[1744508582448,0.29142434,597.67,597.06,3.015]
[1744508582846,0.30778843,597.66,597.06,3.015]
[1744508584247,0.33461602,597.7,597.06,3.015]
[1744508584447,0.30778687,597.65,597.06,3.015]
[1744508584647,0.30778687,597.64,597.06,3.403]
[1744508585942,0.291428,597.65,597.06,3.403]
[1744508586143,0.30779038,597.64,597.06,3.403]
[1744508587648,0.30779038,597.63,597.06,3.403]
[1744508587849,0.30779038,597.62,597.06,3.403]
[1744508588150,0.30779038,597.61,597.06,3.403]
[1744508588452,0.30779038,597.6,597.06,3.403]
[1744508588649,0.29142434,597.6,597.06,3.403]
[1744508588853,0.30779038,597.59,597.06,3.403]
[1744508590751,0.30779038,597.59,597.06,3.943]
[1744508592754,0.29142434,597.6,597.06,3.943]
[1744508592949,0.30781239,597.59,597.06,3.943]
[1744508593150,0.30781239,597.59,597.06,4.484]
[1744508594455,0.29142434,597.6,597.06,4.484]
[1744508594654,0.30779157,597.59,597.06,4.484]
[1744508596055,0.29142434,597.6,597.06,4.484]
[1744508596255,0.30778955,597.59,597.06,4.484]
[1744508596555,0.30778955,597.58,597.06,4.484]
[1744508596751,0.30778955,597.69,597.06,4.484]
[1744508596956,0.30778955,597.68,597.06,4.484]
[1744508597155,0.30778955,597.67,597.06,4.484]
[1744508597357,0.30778955,597.69,597.06,4.484]
[1744508597561,0.30778955,597.66,597.06,4.484]
[1744508597757,0.30778955,597.65,597.06,4.484]
[1744508597954,0.30778955,597.64,597.06,4.484]
[1744508598157,0.30778955,597.66,597.06,4.484]
[1744508598356,0.30778955,597.65,597.07,0.96553388]
[1744508598656,0.30778955,597.64,597.07,0.96553388]
[1744508598855,0.30778955,597.66,597.08,0.96553388]
[1744508599052,0.29143898,597.67,597.09,0.96553388]
[1744508599558,0.29143898,597.67,597.1,0.96553388]
[1744508600058,0.29143898,597.67,597.11,0.96553388]
[1744508600759,0.29143898,597.67,597.12,0.96553388]
[1744508600961,0.29143898,597.67,597.13,0.58]
[1744508601356,0.29143898,597.67,597.14,0.96553388]
[1744508601860,0.30770765,597.66,597.15,0.96553388]
[1744508602261,0.30770765,597.66,597.15,1.73053388]
[1744508602461,0.29143898,597.67,597.16,0.96553388]
[1744508602662,0.30770246,597.66,597.16,0.96553388]
[1744508602862,0.30770246,597.66,597.17,0.96553388]
[1744508603661,0.30770246,597.66,597.18,0.96553388]
[1744508603860,0.29143898,597.67,597.18,0.96553388]
[1744508604265,0.29143898,597.67,597.15,1.153]
[1744508604565,0.30770268,597.66,597.16,0.96391081]
[1744508604764,0.29143898,597.67,597.16,0.96391081]
[1744508605166,1.27338355,598.11,597.17,0.96391081]
[1744508605360,0.30769386,598.1,597.17,0.96391081]
[1744508605660,0.30769386,598.1,597.15,1.153]
[1744508606062,0.30769386,598.19,597.16,0.96378708]
[1744508606266,0.64204138,598.18,597.16,1.49478708]
[1744508606566,0.64204138,598.18,597.16,0.531]
[1744508606567,0.64204697,598.17,597.16,0.531]
[1744508606766,0.30769386,598.16,597.16,0.531]
[1744508606967,0.64205814,598.15,597.16,0.531]
[1744508607166,0.64206373,598.14,597.16,0.531]
[1744508607367,0.64206933,598.13,597.16,0.531]
[1744508607563,0.30769386,598.12,597.16,0.531]
[1744508607763,0.30769386,598.11,597.16,0.531]
[1744508607966,0.30769386,598.1,597.16,0.531]
[1744508608167,0.64209169,598.09,597.16,0.531]
[1744508608368,0.64209728,598.08,597.16,0.531]
[1744508608564,0.64210287,598.07,597.16,1.013]
[1744508608771,0.64210846,598.06,597.16,1.013]
[1744508608963,0.3344146,598.06,597.16,1.013]
[1744508609268,0.30777376,598.05,597.16,1.013]
[1744508609470,0.30777376,598.04,597.16,1.013]
[1744508609667,0.30777376,598.03,597.16,1.013]
[1744508609868,0.30777376,598.02,597.16,1.013]
[1744508610071,0.30777376,598.01,597.16,1.013]
[1744508610268,0.30777376,598.0,597.16,1.013]
[1744508610464,0.64222751,597.99,597.16,1.013]
[1744508610669,0.33445934,597.98,597.16,1.013]
[1744508610866,0.30779133,597.97,597.16,1.013]
[1744508611173,0.30779133,597.96,597.16,1.013]
[1744508611470,0.30779133,597.95,597.16,1.013]
[1744508611670,0.30779133,597.94,597.16,1.013]
[1744508611970,0.30779133,597.93,597.16,1.013]
[1744508612266,0.30779133,597.92,597.16,1.013]
[1744508612475,0.59919126,597.92,597.16,1.013]
[1744508612671,0.30779133,597.91,597.16,1.013]
[1744508612869,0.30779133,597.9,597.16,1.013]
[1744508613171,0.64230102,597.89,597.16,1.013]
[1744508613371,0.30779133,597.88,597.16,1.013]
[1744508613674,0.30779133,597.87,597.16,1.013]
[1744508613870,0.30779133,597.88,597.16,1.013]
[1744508614471,0.33452088,597.87,597.16,1.013]
[1744508614672,0.30779133,597.86,597.16,1.013]
[1744508614867,0.33453207,597.85,597.16,1.013]
[1744508615072,0.30779133,597.84,597.16,1.013]
[1744508615472,0.64232899,597.84,597.16,1.013]
[1744508615671,0.30779133,597.83,597.16,1.013]
[1744508617473,0.30779133,597.83,597.16,1.677]
[1744508617773,0.29141702,597.82,597.16,1.677]
[1744508618072,0.30779133,597.81,597.16,1.677]
[1744508619875,0.30779133,597.81,597.16,2.26]
[1744508620475,0.30779133,597.8,597.16,2.26]
[1744508620674,0.29138041,597.8,597.16,2.26]
[1744508620867,0.30773739,597.79,597.16,2.26]
[1744508621779,0.30773739,597.79,597.16,2.648]
[1744508622280,0.30773334,597.78,597.16,2.648]
[1744508622472,0.30773334,597.77,597.16,2.648]
[1744508622676,0.30773334,597.79,597.16,2.648]
[1744508622873,0.30773334,597.78,597.16,2.648]
[1744508623175,0.30773334,597.77,597.16,2.648]
[1744508623380,0.33453766,597.84,597.16,2.648]
[1744508623381,0.30773334,597.79,597.16,2.648]
[1744508623583,0.29137554,597.76,597.16,2.648]
[1744508623880,0.30773334,597.75,597.16,3.54]
[1744508626485,0.30773334,597.83,597.16,3.54]
[1744508626684,0.2913609,597.74,597.16,3.54]
[1744508627080,0.33453766,597.84,597.16,3.54]
[1744508627280,0.3076984,597.83,597.16,3.54]
[1744508627786,0.2913609,597.82,597.16,3.54]
[1744508627981,0.3076984,597.81,597.16,3.54]
[1744508628586,0.2913609,597.82,597.16,3.54]
[1744508628786,0.30771407,597.81,597.16,3.54]
[1744508629487,0.30771407,597.83,597.16,3.54]
[1744508629789,0.29136334,597.8,597.16,3.54]
[1744508629983,0.30771407,597.79,597.16,3.54]
[1744508631589,0.30771407,597.79,597.16,4.279]
[1744508632383,0.30771407,597.83,597.16,4.279]
[1744508632587,0.30771407,597.82,597.16,4.279]
[1744508632787,0.29141213,597.78,597.16,4.279]
[1744508632988,0.30771407,597.77,597.16,4.279]
[1744508635391,0.30771407,597.83,597.16,4.279]
[1744508635585,0.29140725,597.76,597.16,4.279]
[1744508635787,0.30771407,597.75,597.16,4.279]
[1744508635985,0.30771407,597.83,597.16,4.279]
[1744508636590,0.33453766,597.84,597.16,4.279]
[1744508636789,0.29139993,597.82,597.16,4.279]
[1744508636987,0.30777992,597.81,597.16,4.279]
[1744508638590,0.29140969,597.8,597.16,4.279]
[1744508638790,0.30777992,597.79,597.16,4.279]
[1744508641088,0.29140969,597.8,597.16,4.279]
[1744508641292,0.3077829,597.79,597.16,4.279]
[1744508641593,0.3077829,597.78,597.16,4.279]
[1744508641793,0.2914158,597.79,597.16,4.279]
[1744508641989,0.3077829,597.78,597.16,4.279]
[1744508642892,0.64235414,597.78,597.16,4.279]
[1744508643093,0.3077829,597.77,597.16,4.279]
[1744508644194,0.33457124,597.78,597.16,4.279]
[1744508644401,0.30783139,597.77,597.16,4.279]
[1744508645599,0.29143898,597.76,597.16,4.279]
[1744508645792,0.30783139,597.75,597.16,4.279]
[1744508647496,0.30785083,597.74,597.16,4.279]
[1744508647696,0.30785083,597.73,597.16,4.279]
[1744508647893,0.30785083,597.77,597.16,4.279]
[1744508648099,0.30785083,597.76,597.16,4.279]
[1744508648298,0.30785083,597.77,597.16,4.279]
[1744508648500,0.29143898,597.75,597.16,4.279]
[1744508648699,0.30785083,597.74,597.16,4.279]
[1744508650601,0.30785083,597.73,597.16,4.279]
[1744508650899,0.30785083,597.77,597.16,4.279]
[1744508651097,0.30785083,597.76,597.16,4.279]
[1744508651298,0.30785083,597.77,597.16,4.279]
[1744508651495,0.59926052,597.76,597.16,4.279]
[1744508651795,0.30785083,597.75,597.16,4.279]
[1744508653594,0.30785083,597.77,597.16,4.279]
[1744508653797,0.30785083,597.76,597.16,4.279]
[1744508653994,0.30785083,597.77,597.16,4.279]
[1744508654196,0.30785083,597.76,597.16,4.279]
[1744508654398,0.30785083,597.77,597.16,4.279]
[1744508654598,0.30785083,597.75,597.16,4.279]
[1744508654898,0.30785083,597.74,597.16,4.279]
[1744508655099,0.30785083,597.75,597.16,4.279]
[1744508655300,0.30785083,597.74,597.16,4.279]
[1744508655500,0.30785083,597.75,597.16,4.279]
[1744508655702,0.30785083,597.74,597.16,4.279]
[1744508655903,0.30785083,597.73,597.16,4.279]
[1744508656202,0.30785083,597.72,597.16,4.279]
[1744508656400,0.30785083,597.75,597.16,4.279]
[1744508656598,0.30785083,597.77,597.16,4.279]
[1744508656796,0.30785083,597.76,597.16,4.279]
[1744508657102,0.30785083,597.77,597.16,4.279]
[1744508657303,0.30785083,597.76,597.16,4.279]
[1744508657606,0.59925808,597.75,597.16,4.279]
[1744508657803,0.30785083,597.74,597.16,4.279]
[1744508659702,0.30785083,597.73,597.16,4.279]
[1744508659901,0.30785083,597.77,597.16,4.279]
[1744508660602,0.29140725,597.76,597.16,4.279]
[1744508660803,0.30785083,597.75,597.16,4.279]
[1744508663507,0.29140725,597.76,597.16,4.279]
[1744508663807,0.30776399,597.75,597.16,4.279]
[1744508665502,0.30776399,597.74,597.16,4.279]
[1744508665706,0.30776399,597.77,597.16,4.279]
[1744508665907,0.30776399,597.76,597.16,4.279]
[1744508666109,0.30776399,597.77,597.16,4.279]
[1744508666308,0.30776399,597.76,597.16,4.279]
[1744508666609,0.30776399,597.75,597.16,4.279]
[1744508668511,0.33457124,597.78,597.16,4.279]
[1744508668908,0.30772615,597.77,597.16,4.279]
[1744508669510,0.29137798,597.76,597.16,4.279]
[1744508669810,0.30772615,597.75,597.16,4.279]
[1744508670116,0.29137798,597.76,597.16,4.279]
[1744508670312,0.30773151,597.75,597.16,4.279]
[1744508671316,0.33457124,597.78,597.16,4.279]
[1744508671512,0.30772123,597.77,597.16,4.279]
[1744508671713,0.33457124,597.78,597.16,4.279]
[1744508671913,0.30772123,597.76,597.16,4.279]
[1744508672110,0.33457124,597.78,597.16,4.279]
[1744508672517,0.29135846,597.75,597.16,4.279]
[1744508674314,1.27338355,598.41,597.17,0.96340414]
[1744508674513,0.33423018,598.39,597.17,0.96340414]
[1744508674711,0.30766185,598.38,597.18,0.96340414]
[1744508674911,0.33424694,598.36,597.18,0.96340414]
[1744508675213,0.30766103,598.35,597.18,0.96340414]
[1744508675410,0.33425811,598.34,596.05,1.05824993]
[1744508675612,0.30766103,598.33,596.65,0.29126457]
[1744508676014,0.30766103,598.33,596.66,0.96301685]
[1744508676217,0.33426928,598.32,596.67,0.33519365]
[1744508676418,0.30766103,598.31,596.68,0.96301685]
[1744508677016,0.33428046,598.3,596.7,0.3351768]
[1744508677315,0.30766103,598.29,596.7,0.3351768]
[1744508677520,0.33429722,598.27,596.71,0.96301685]
[1744508677720,0.30769685,598.26,596.72,0.33516557]
[1744508678020,0.30769685,598.25,596.73,1.367]
[1744508678220,0.30769685,598.25,596.73,2.33001685]
[1744508678521,0.93336929,598.24,596.74,1.01215433]
[1744508678720,0.64201642,598.23,596.75,0.33514872]
[1744508678916,0.64202201,598.22,596.76,0.96301685]
[1744508679120,0.6420276,598.21,596.77,0.33513749]
[1744508679322,0.64203319,598.2,596.78,0.96301685]
[1744508679621,0.64203878,598.19,596.79,1.2981431]
[1744508679816,0.64205034,598.18,596.8,0.33512064]
[1744508680016,0.64205593,598.17,596.8,0.33512064]
[1744508680218,0.64206152,598.16,596.81,0.96301685]
[1744508680418,0.6420671,598.15,596.82,0.33510941]
[1744508680620,0.64207269,598.14,596.82,0.33510941]
[1744508680821,0.64207829,598.13,596.83,0.96301685]
[1744508681116,0.64208388,598.12,596.83,0.96301685]
[1744508681317,0.33438106,598.12,596.83,0.96301685]
[1744508681518,0.30770651,598.11,596.84,0.96301685]
[1744508681816,0.30770651,598.11,596.85,0.96301685]
[1744508682022,0.33439224,598.1,596.85,0.96301685]
[1744508682222,0.30770651,598.09,596.85,0.96301685]
[1744508682423,0.33440342,598.08,596.86,0.96301685]
[1744508682722,0.30770651,598.07,596.86,0.96301685]
[1744508683022,0.30770651,598.07,596.87,0.96301685]
[1744508683724,0.30770651,598.07,596.82,0.33510941]
[1744508683926,0.30770651,598.07,596.88,0.96282621]
[1744508684226,0.30770651,598.07,596.89,0.523]
[1744508684419,0.30770651,598.07,596.9,0.96282621]
[1744508684622,0.29134504,598.06,596.9,0.96282621]
[1744508684820,0.30770651,598.05,596.9,0.96282621]
[1744508685220,0.30770651,598.05,596.91,0.96282621]
[1744508685626,0.30770651,598.05,596.91,1.29788509]
[1744508686127,0.29134504,598.06,596.92,0.96282621]
[1744508686323,0.30766793,598.05,596.93,0.96282621]
[1744508686524,0.30766793,598.04,596.93,0.96282621]
[1744508686826,0.30766793,598.03,596.93,0.96282621]
[1744508687029,0.30766793,598.07,596.94,0.96282621]
[1744508687223,0.30766793,598.06,596.94,0.96282621]
[1744508687422,0.30766793,598.05,596.95,0.96282621]
[1744508687721,0.29133407,598.06,596.95,0.96282621]
[1744508687922,0.30769439,598.05,596.95,0.96282621]
[1744508688125,0.30769439,598.05,596.96,0.96282621]
[1744508688524,0.30769439,598.05,596.97,0.96282621]
[1744508689230,0.29133407,598.06,596.97,0.96282621]
[1744508689433,0.30768179,598.05,596.98,0.96282621]
[1744508689634,0.2913548,598.04,596.98,0.96282621]
[1744508689832,0.30768179,598.03,596.98,0.96282621]
[1744508690025,0.30768179,598.03,596.99,0.96282621]
[1744508690533,0.30768179,598.03,597.0,0.96282621]
[1744508691031,0.30768179,598.03,597.01,0.96282621]
[1744508691430,0.30768179,598.03,596.91,0.33505888]
[1744508691431,0.30768179,598.03,597.02,0.96282621]
[1744508691828,0.30768179,598.03,597.03,0.96282621]
[1744508692226,0.30768179,598.03,597.04,0.96282621]
[1744508692532,0.2913548,598.04,597.05,0.96282621]
[1744508692831,0.30770188,598.03,597.05,0.96282621]
[1744508693034,0.30770188,598.03,597.06,0.96282621]
[1744508693427,0.30770188,598.03,597.06,1.66882621]
[1744508694231,0.30770188,598.03,597.07,0.96282621]
[1744508694933,0.30770188,598.03,597.06,0.706]
[1744508695530,0.30770188,598.07,597.06,1.498]
[1744508695934,0.30770188,598.07,597.07,0.96243127]
[1744508696437,0.30770188,598.07,597.06,1.498]
[1744508696634,0.29134016,598.06,597.06,1.498]
[1744508696831,0.30770188,598.05,597.06,1.498]
[1744508697136,0.30770188,598.05,597.07,0.96246811]
[1744508697337,0.29134016,598.06,597.07,0.96246811]
[1744508697533,0.30771817,598.05,597.07,0.96246811]
[1744508697731,0.30771817,598.05,597.06,1.498]
[1744508698037,0.30771817,598.05,597.07,0.96240259]
[1744508698237,0.30771817,598.05,597.06,1.498]
[1744508698635,0.30771817,598.07,597.06,1.498]
[1744508699340,0.30771817,598.07,597.07,0.96254733]
[1744508699642,0.29134138,598.06,597.07,0.96254733]
[1744508699837,0.30771817,598.05,597.06,1.498]
[1744508701245,0.30771817,598.05,597.07,0.9625427]
[1744508701744,0.3077515,598.04,597.07,0.9625427]
[1744508701945,0.3077515,598.03,597.06,1.498]
[1744508702144,0.3077515,598.07,597.06,1.498]
[1744508702344,0.3077515,598.06,597.06,1.498]
[1744508702541,0.29136822,598.06,597.06,1.498]
[1744508702745,0.3077515,598.05,597.06,1.498]
[1744508702940,0.3077515,598.04,597.06,1.498]
[1744508703344,0.29136822,598.06,597.06,1.498]
[1744508703345,0.3077515,598.03,597.06,1.498]
[1744508703545,0.3077515,598.02,597.06,1.498]
[1744508703845,0.3077515,598.01,597.06,1.498]
[1744508704040,0.3077515,598.0,597.06,2.02]
[1744508704244,0.3077515,597.99,597.06,2.02]
[1744508704446,0.3077515,597.98,597.06,2.02]
[1744508704648,0.3077515,597.97,597.06,2.02]
[1744508704846,0.29139505,597.97,597.06,2.02]
[1744508705046,0.30779616,597.96,597.06,2.02]
[1744508705247,0.30779616,597.95,597.06,2.02]
[1744508705543,0.30779616,597.94,597.06,2.02]
[1744508705747,0.30779616,597.93,597.06,2.02]
[1744508706049,0.30779616,597.92,597.06,2.02]
[1744508706347,0.30779616,597.91,597.06,2.02]
[1744508706548,0.30780968,597.9,597.06,2.02]
[1744508706748,0.30780968,597.96,597.06,2.02]
[1744508706942,0.30780968,597.95,597.06,2.02]
[1744508707146,0.30780968,597.94,597.06,2.02]
[1744508707346,0.30780968,597.93,597.06,2.02]
[1744508707548,0.30780968,597.92,597.06,2.02]
[1744508707745,0.30780968,597.91,597.06,2.02]
[1744508707944,1.27338355,597.82,597.06,2.02]
[1744508708250,0.64236413,597.81,597.06,2.02]
[1744508708443,0.64236973,597.8,597.06,2.02]
[1744508708747,0.30780968,597.79,597.06,2.577]
[1744508709146,0.30780968,597.79,597.06,3.366]
[1744508709949,0.30780968,597.79,597.06,3.754]
[1744508711253,0.33456005,597.8,597.06,3.754]
[1744508711447,0.30781325,597.79,597.06,4.507]
[1744508712852,0.33456005,597.8,597.06,4.507]
[1744508713052,0.30773778,597.79,597.06,4.507]
[1744508714551,0.29137798,597.78,597.06,4.507]
[1744508714753,0.30773778,597.77,597.06,4.507]
[1744508715451,0.30773778,597.77,597.07,0.96326682]
[1744508716053,0.29137798,597.78,597.08,0.96326682]
[1744508716253,0.30770934,597.77,597.08,0.96326682]
[1744508716753,0.30770934,597.76,597.09,0.96326682]
[1744508716952,0.30770934,597.79,597.09,0.96326682]
[1744508717151,0.33456005,597.8,597.09,0.96326682]
[1744508717351,0.30768,597.79,597.1,0.96326682]
[1744508717553,0.29137066,597.78,597.11,0.96326682]
[1744508717753,0.30768033,597.77,597.11,0.96326682]
[1744508718150,0.30768033,597.77,597.12,0.96326682]
[1744508718354,0.29137066,597.78,597.12,1.48326682]
[1744508718657,0.29137066,597.78,597.13,0.96326682]
[1744508718861,0.29137066,597.78,597.13,1.57026682]
[1744508719258,0.29137066,597.78,597.14,0.96326682]
[1744508719756,0.29137066,597.78,597.15,0.96326682]
[1744508720055,0.29137066,597.78,597.16,0.96326682]
[1744508720658,0.29137066,597.78,597.17,0.96326682]
[1744508720858,0.29137066,597.78,597.18,0.96326682]
[1744508721454,0.29137066,597.78,597.19,0.96326682]
[1744508721857,0.29137066,597.78,597.2,0.96326682]
[1744508722258,1.27338355,598.45,597.2,0.96326682]
[1744508722456,0.33420784,598.43,597.2,0.96326682]
[1744508722657,0.30762431,598.42,597.21,0.96326682]
[1744508722858,0.33421901,598.41,597.21,0.96326682]
[1744508723059,0.30762431,598.4,597.21,0.96326682]
[1744508723259,0.30762431,598.4,597.22,0.96326682]
[1744508723460,0.62547647,598.39,597.22,0.96326682]
[1744508723660,0.62547647,598.39,597.23,0.96326682]
[1744508723661,0.64186007,598.38,597.23,0.96326682]
[1744508723961,0.64186566,598.37,597.24,0.642]
[1744508724261,0.64187477,598.36,597.24,0.642]
[1744508724456,0.64188035,598.35,597.24,0.642]
[1744508724760,0.64188594,598.34,597.24,0.642]
[1744508724960,0.30762783,598.33,597.25,0.691]
[1744508725255,0.64189153,598.33,597.25,0.691]
[1744508725454,0.30762783,598.32,597.25,0.691]
[1744508725654,0.33427487,598.31,597.25,0.691]
[1744508725855,0.30762783,598.3,597.25,0.691]
[1744508726054,0.33428604,598.29,597.25,0.691]
[1744508726360,0.30762783,598.28,597.25,0.691]
[1744508726560,0.33429722,598.27,597.25,0.691]
[1744508726762,0.30762783,598.26,597.25,0.691]
[1744508727758,0.33430839,598.25,597.26,0.96080953]
[1744508727958,0.30762783,598.24,597.26,0.96080953]
[1744508728160,0.598879,598.24,597.26,0.96080953]